[Event "8th Ali Ipek Tournament 2020"]
[Site "Ankara"]
[Date "2020.03.06"]
[Round "3.15"]
[White "Ozates, Mert"]
[Black "Orhon, Bora"]
[Result "1-0"]
[ECO "A13"]
[WhiteElo "1810"]
[BlackElo "1460"]
[Annotator "NA RC"]
[PlyCount "93"]
[EventDate "2020.03.04"]
[EventType "swiss"]
[EventCountry "TUR"]
[SourceTitle "playchess.com"]
[Source "ChessBase"]
[SourceQuality "1"]
[TimeControl "5400+30"]

1. Nf3 {[%emt 0:00:30]} d5 {[%emt 0:00:30]} 2. b3 {[%emt 0:00:00]} Nf6 {[%emt 0:00:30]} 3. Bb2 {[%emt 0:00:00]} e6 {[%emt 0:00:00]} 4. e3 {[%emt 0:00:00]} c5 {[%emt 0:00:00]} 5. c4 {[%emt 0:00:00]} Nc6 {[%emt 0:00:30]} 6. cxd5 {[%emt 0:00:30]} exd5 {[%emt 0:00:30]} 7. Be2 {[%emt 0:00:00]} Be7 {[%emt 0:00:30]} 8. O-O {[%emt 0:00:00] 8.d4 is not played anymore.} O-O {[%emt 0:00:30]} 9. d4 {[%emt 0:00:00]} h6 {[%emt 0:02:30] A13: English Opening: 1...e6.} 10. Nc3 {[%emt 0:01:00]} Bf5 {[%emt 0:03:30]} 11. dxc5 {[%emt 0:02:30]} Bxc5 {[%emt 0:00:30]} 12. Rc1 {[%emt 0:00:00]} Be7 {[%emt 0:03:30]} 13. Nd4 {[%emt 0:06:00]} Bh7 {[%emt 0:04:30] [#]} 14. Na4 $146 {[%emt 0:15:30]} ({Predecessor:} 14. Nxc6 bxc6 15. Na4 Qd7 16. Qd4 Bd6 17. h3 Rfe8 18. Bf3 Be4 19. Bxe4 Rxe4 20. Nc5 Bxc5 21. Qxc5 {1-0 (27) Lagarde,M (2594)-Chakravarthi,R (2353) Bastia 2017}) 14... Rc8 {[%emt 0:09:30]} 15. Nxc6 {[%emt 0:10:30]} bxc6 {[%emt 0:05:30]} 16. Qd4 {[%emt 0:14:30]} Qc7 {[%emt 0:11:30]} 17. Ba6 {[%emt 0:07:30]} Rb8 {[%emt 0:03:30]} 18. Bd3 {[%emt 0:02:30]} Bxd3 {[%emt 0:10:30]} 19. Qxd3 {[%emt 0:02:30]} Rfe8 {[%emt 0:11:30]} 20. Rc2 {[%emt 0:04:30]} Ng4 {[%emt 0:02:30]} 21. g3 {[%emt 0:01:30]} Bd6 {[%emt 0:04:30]} 22. Rfc1 {[%emt 0:04:30]} Rbc8 {[%emt 0:02:30]} (22... Qd7 $16 23. Rxc6 Be5) 23. Rxc6 {[%emt 0:03:30]} Qxc6 {[%emt 0:00:00]} 24. Rxc6 {[%emt 0:00:30]} Rxc6 {[%emt 0:00:00]} 25. Qxd5 {[%emt 0:03:30]} Rec8 {[%emt 0:00:30] [#]} 26. Qd4 $1 {[%emt 0:02:05]} Ne5 {[%emt 0:02:30]} 27. Kg2 {[%emt 0:02:19]} f6 {[%emt 0:02:59]} 28. Qxa7 {[%emt 0:02:31]} Rc2 {[%emt 0:01:07]} 29. Qd4 {[%emt 0:01:00]} R8c6 {[%emt 0:01:53]} (29... Nf7 {is a better defense.} 30. Qd1 Kh8) 30. b4 {[%emt 0:04:49]} Nc4 {[%emt 0:03:55]} 31. b5 {[%emt 0:03:08]} Rc8 {[%emt 0:00:55]} 32. Qd5+ {[%emt 0:04:54]} Kh8 {[%emt 0:00:09]} 33. Bd4 {[%emt 0:00:00]} Rd2 $18 {[%emt 0:01:13]} 34. Qe6 {[%emt 0:00:55]} Rc7 {[%emt 0:02:26]} 35. b6 {[%emt 0:00:58]} Nxb6 {[%emt 0:00:55]} 36. Nxb6 {[%emt 0:01:27]} Rcc2 {[%emt 0:00:25]} 37. Qe8+ {[%emt 0:00:58]} Kh7 {[%emt 0:00:04]} 38. Qe4+ {[%emt 0:00:34]} Kh8 {[%emt 0:00:04]} 39. Qf3 {[%emt 0:00:37]} Rxa2 {[%emt 0:00:18]} 40. Nc4 {[%emt 0:00:12]} Rxf2+ {[%emt 0:00:42]} 41. Qxf2 {[%emt 0:00:30]} Rxf2+ {[%emt 0:00:00]} 42. Kxf2 {[%emt 0:00:00]} Be7 {[%emt 0:00:09]} 43. Kf3 {[%emt 0:00:16]} Kh7 {[%emt 0:00:00]} 44. Nb6 {[%emt 0:00:01]} Bd6 {[%emt 0:00:05]} 45. Nd5 {[%emt 0:00:37]} Kg6 {[%emt 0:00:30]} 46. Nf4+ {[%emt 0:00:00]} Kf7 {[%emt 0:00:13]} 47. Ke4 {[%emt 0:00:01]} 1-0

[Event "8th Ali Ipek Tournament 2020"]
[Site "Ankara"]
[Date "2020.03.07"]
[Round "3.16"]
[White "Genc, Arda"]
[Black "Hotman, Cagan Arhan"]
[Result "1-0"]
[ECO "C47"]
[WhiteElo "1734"]
[BlackElo "1358"]
[Annotator "NA RC"]
[PlyCount "39"]
[EventDate "2020.03.04"]
[EventType "swiss"]
[EventCountry "TUR"]
[TimeControl "5400+30"]

1. e4 {[%emt 0:00:30]} e5 {[%emt 0:00:30]} 2. Nf3 {[%emt 0:00:30]} Nc6 {[%emt 0:00:00]} 3. Nc3 {[%emt 0:00:00]} Nf6 {[%emt 0:00:00]} 4. h3 {[%emt 0:00:00]} Bc5 {[%emt 0:04:30]} 5. Nxe5 {[%emt 0:01:30]} Bxf2+ {[%emt 0:02:30]} 6. Kxf2 {[%emt 0:00:30]} Nxe5 {[%emt 0:00:30]} 7. d4 {[%emt 0:00:30]} Ng6 {[%emt 0:06:30]} 8. e5 {[%emt 0:06:30]} Ng8 {[%emt 0:05:30]} 9. Bc4 {[%emt 0:32:30]} N8e7 {[%emt 0:01:30]} 10. Qf3 {[%emt 0:12:30]} O-O {[%emt 0:00:30]} 11. h4 {[%emt 0:08:30]} Nc6 {[%emt 0:03:30]} 12. h5 {[%emt 0:00:30]} Nge7 {[%emt 0:01:30]} 13. Be3 {[%emt 0:01:30]} h6 {[%emt 0:02:30]} 14. Bxh6 {[%emt 0:12:50]} Nxd4 {[%emt 0:02:30]} 15. Qg4 {[%emt 0:01:33]} Ndf5 {[%emt 0:03:30]} 16. Bxg7 {[%emt 0:00:15]} Nxg7 {[%emt 0:00:30]} 17. h6 {[%emt 0:00:10]} Nef5 {[%emt 0:00:30]} 18. hxg7 {[%emt 0:00:45]} Nxg7 {[%emt 0:00:30]} 19. Qg6 {[%emt 0:00:07]} d5 {[%emt 0:00:30]} 20. Qh7# {[%emt 0:00:08]} 1-0

[Event "8th Ali Ipek Tournament 2020"]
[Site "Ankara"]
[Date "2020.03.07"]
[Round "3.17"]
[White "Aslan, Ali Efe"]
[Black "Nazli, Sertan"]
[Result "0-1"]
[ECO "C47"]
[WhiteElo "1394"]
[BlackElo "1745"]
[Annotator "NA RC"]
[PlyCount "62"]
[EventDate "2020.03.04"]
[EventType "swiss"]
[EventCountry "TUR"]
[TimeControl "5400+30"]

1. e4 {[%emt 0:00:30]} e5 {[%emt 0:00:30]} 2. Nf3 {[%emt 0:00:30]} Nc6 {[%emt 0:00:00]} 3. Nc3 {[%emt 0:00:00]} Nf6 {[%emt 0:00:00]} 4. Be2 {[%emt 0:00:00]} d5 {[%emt 0:00:30]} 5. exd5 {[%emt 0:00:00]} Nxd5 {[%emt 0:00:00]} 6. O-O {[%emt 0:00:00]} Nxc3 {[%emt 0:00:00]} 7. bxc3 {[%emt 0:00:00]} e4 {[%emt 0:00:30]} 8. Ne1 {[%emt 0:00:00]} f5 {[%emt 0:00:00]} 9. f3 {[%emt 0:01:30]} Bc5+ {[%emt 0:00:00]} 10. Kh1 {[%emt 0:00:00]} Bd6 {[%emt 0:05:30]} 11. fxe4 {[%emt 0:03:00]} fxe4 {[%emt 0:00:00]} 12. g3 {[%emt 0:13:30]} Bh3 {[%emt 0:01:00]} 13. Ng2 {[%emt 0:00:30]} Qd7 {[%emt 0:00:30]} 14. Bc4 {[%emt 0:05:30]} Ne5 {[%emt 0:19:30]} 15. Bd5 {[%emt 0:01:30]} O-O-O {[%emt 0:00:30]} 16. Nf4 {[%emt 0:12:30]} Rhf8 {[%emt 0:12:30]} 17. Re1 {[%emt 0:10:30]} Bg4 {[%emt 0:10:30]} 18. Qxg4 {[%emt 0:00:30]} Nxg4 {[%emt 0:02:30]} 19. Be6 {[%emt 0:00:30]} Bxf4 {[%emt 0:04:30]} 20. Bxd7+ {[%emt 0:00:30]} Rxd7 {[%emt 0:00:30]} 21. gxf4 {[%emt 0:00:00]} Rxf4 {[%emt 0:00:00]} 22. h3 {[%emt 0:00:00]} Nf6 {[%emt 0:06:00]} 23. Kg2 {[%emt 0:01:30]} Rf5 {[%emt 0:00:30]} 24. Re2 {[%emt 0:04:30]} Rf7 {[%emt 0:00:30]} 25. Ba3 {[%emt 0:00:30]} Rf3 {[%emt 0:04:30]} 26. Rf1 {[%emt 0:03:30]} Nh5 {[%emt 0:01:30]} 27. Ree1 {[%emt 0:12:30]} Nf4+ {[%emt 0:01:30]} 28. Kh2 {[%emt 0:00:30]} Rxh3+ {[%emt 0:00:30]} 29. Kg1 {[%emt 0:00:00]} Rg3+ {[%emt 0:04:30]} 30. Kh2 {[%emt 0:00:00]} Rg4 {[%emt 0:03:30]} 31. Rxe4 {[%emt 0:03:30]} Rf6 {[%emt 0:00:00]} 0-1

[Event "8th Ali Ipek Tournament 2020"]
[Site "Ankara"]
[Date "2020.03.07"]
[Round "3.18"]
[White "Ari, Hasancan"]
[Black "Ercan, Mehmet Fahri"]
[Result "1-0"]
[ECO "D52"]
[WhiteElo "1399"]
[BlackElo "1810"]
[Annotator "NA RC"]
[PlyCount "33"]
[EventDate "2020.03.04"]
[EventType "swiss"]
[EventCountry "TUR"]
[TimeControl "5400+30"]

1. d4 {[%emt 0:00:30]} Nf6 {[%emt 0:26:30]} 2. c4 {[%emt 0:00:30]} e6 {[%emt 0:00:30]} 3. Nf3 {[%emt 0:00:30]} d5 {[%emt 0:00:30]} 4. Bg5 {[%emt 0:00:00]} c6 {[%emt 0:00:00]} 5. Nc3 {[%emt 0:00:00]} Nbd7 {[%emt 0:00:00]} 6. e3 {[%emt 0:00:00]} Qa5 {[%emt 0:00:30]} 7. Bxf6 {[%emt 0:00:00]} Nxf6 {[%emt 0:00:00]} 8. Nd2 {[%emt 0:00:30]} dxc4 {[%emt 0:00:00]} 9. Nxc4 {[%emt 0:00:30]} Qc7 {[%emt 0:00:30]} 10. Bd3 {[%emt 0:01:30]} Be7 {[%emt 0:00:30]} 11. Rc1 {[%emt 0:00:30]} O-O {[%emt 0:00:30]} 12. O-O {[%emt 0:01:30]} Bd7 {[%emt 0:04:30]} 13. Ne5 {[%emt 0:03:30]} Rad8 {[%emt 0:00:30]} 14. f4 {[%emt 0:05:30]} Qb6 {[%emt 0:03:30]} 15. Rf3 {[%emt 0:01:30]} Qxb2 {[%emt 0:02:30]} 16. Nc4 {[%emt 0:00:30]} Qb4 {[%emt 0:02:30]} 17. a3 {[%emt 0:00:30]} 1-0

[Event "8th Ali Ipek Tournament 2020"]
[Site "Ankara"]
[Date "2020.03.06"]
[Round "3.19"]
[White "Yilmaz, Baver"]
[Black "Ergani, Efe"]
[Result "0-1"]
[ECO "B06"]
[WhiteElo "1446"]
[BlackElo "1668"]
[Annotator "NA"]
[PlyCount "82"]
[EventDate "2020.03.04"]
[EventType "swiss"]
[EventCountry "TUR"]
[SourceTitle "playchess.com"]
[Source "ChessBase"]
[SourceQuality "1"]
[TimeControl "5400+30"]

1. e4 {[%emt 0:01:30]} g6 {[%emt 0:00:30]} 2. d4 {[%emt 0:00:30]} Bg7 {[%emt 0:00:30]} 3. Nf3 {[%emt 0:00:30]} d6 {[%emt 0:00:00]} 4. Nc3 {[%emt 0:00:00]} a6 {[%emt 0:00:00]} 5. Be3 {[%emt 0:01:00]} Nd7 {[%emt 0:00:30]} 6. Bc4 {[%emt 0:02:30]} e6 {[%emt 0:00:30]} 7. Bg5 {[%emt 0:03:30]} Ne7 {[%emt 0:00:30]} 8. Qd2 {[%emt 0:00:30]} h6 {[%emt 0:02:30]} 9. Be3 {[%emt 0:00:30]} b5 {[%emt 0:06:30]} 10. Bb3 {[%emt 0:01:30]} Rb8 {[%emt 0:00:30]} 11. Ne2 {[%emt 0:01:30]} Nf6 {[%emt 0:03:30]} 12. Ng3 {[%emt 0:02:30]} Ng4 {[%emt 0:04:30]} 13. h3 {[%emt 0:04:30]} Nxe3 {[%emt 0:01:30]} 14. fxe3 {[%emt 0:01:30]} c5 {[%emt 0:04:30]} 15. c3 {[%emt 0:01:30]} Qc7 {[%emt 0:01:30]} 16. Ne2 {[%emt 0:01:30]} Bd7 {[%emt 0:06:30]} 17. O-O {[%emt 0:00:30]} O-O {[%emt 0:02:30]} 18. Nf4 {[%emt 0:01:30]} a5 {[%emt 0:04:30]} 19. a3 {[%emt 0:01:30]} b4 {[%emt 0:02:30]} 20. axb4 {[%emt 0:05:30]} axb4 {[%emt 0:01:30]} 21. c4 {[%emt 0:00:30]} Ra8 {[%emt 0:00:30]} 22. Nh2 {[%emt 0:02:30]} cxd4 {[%emt 0:03:30]} 23. exd4 {[%emt 0:00:30]} Qb6 {[%emt 0:00:00]} 24. Ne2 {[%emt 0:02:30]} Nc6 {[%emt 0:02:00]} 25. Rad1 {[%emt 0:01:30]} Na5 {[%emt 0:00:30]} 26. Bc2 {[%emt 0:02:30]} Nxc4 {[%emt 0:00:30]} 27. Qc1 {[%emt 0:01:30]} e5 {[%emt 0:04:30]} 28. Nf3 {[%emt 0:02:30]} Rac8 {[%emt 0:02:30]} 29. Kh1 {[%emt 0:00:30]} Bb5 {[%emt 0:02:30]} 30. Rfe1 {[%emt 0:03:30]} Rc7 {[%emt 0:03:30]} 31. Qb1 {[%emt 0:02:30]} Ne3 {[%emt 0:00:30]} 32. Rd2 {[%emt 0:00:30]} Nxc2 {[%emt 0:00:30]} 33. Rxc2 {[%emt 0:01:30]} Bd3 {[%emt 0:00:30]} 34. Rec1 {[%emt 0:01:30]} Bxc2 {[%emt 0:00:30]} 35. Rxc2 {[%emt 0:00:30]} Rfc8 {[%emt 0:00:30]} 36. Rxc7 {[%emt 0:00:30]} Qxc7 {[%emt 0:00:00]} 37. d5 {[%emt 0:00:30]} Qc2 {[%emt 0:00:00]} 38. Qxc2 {[%emt 0:00:30]} Rxc2 {[%emt 0:00:30]} 39. Ng3 {[%emt 0:00:30]} Rxb2 {[%emt 0:00:00]} 40. Kg1 {[%emt 0:00:30]} b3 {[%emt 0:00:00]} 41. Kf1 {[%emt 0:00:30]} Rc2 {[%emt 0:00:30]} 0-1

[Event "8th Ali Ipek Tournament 2020"]
[Site "Ankara"]
[Date "2020.03.07"]
[Round "4.6"]
[White "Akin, Yagiz Cinar"]
[Black "Banci, Dogancan"]
[Result "1-0"]
[ECO "B55"]
[WhiteElo "1861"]
[BlackElo "1634"]
[Annotator "NA RC"]
[PlyCount "51"]
[EventDate "2020.03.04"]
[EventType "swiss"]
[EventCountry "TUR"]
[SourceTitle "playchess.com"]
[Source "ChessBase"]
[SourceQuality "1"]
[TimeControl "5400+30"]

1. e4 {[%emt 0:00:30]} c5 {[%emt 0:00:30]} 2. Nf3 {[%emt 0:00:00]} d6 {[%emt 0:00:30]} 3. d4 {[%emt 0:00:00]} cxd4 {[%emt 0:00:30]} 4. Nxd4 {[%emt 0:00:30]} Nf6 {[%emt 0:00:00]} 5. f3 {[%emt 0:00:00]} e5 {[%emt 0:02:00]} 6. Bb5+ {[%emt 0:00:00]} Bd7 {[%emt 0:00:30]} 7. Bxd7+ {[%emt 0:00:30]} Nbxd7 {[%emt 0:12:30]} 8. Nf5 {[%emt 0:01:30]} Nb6 {[%emt 0:06:30]} 9. c4 {[%emt 0:04:30]} h6 {[%emt 0:04:30]} 10. Nc3 {[%emt 0:04:30]} Qd7 {[%emt 0:02:30]} 11. Ne3 {[%emt 0:00:00]} Be7 {[%emt 0:03:30]} 12. O-O {[%emt 0:01:00]} O-O {[%emt 0:04:30]} 13. b3 {[%emt 0:00:30]} Rac8 {[%emt 0:01:30]} 14. Ba3 {[%emt 0:03:30]} Rfd8 {[%emt 0:04:30]} 15. Nf5 {[%emt 0:03:30]} a6 {[%emt 0:02:30]} 16. Qd2 {[%emt 0:04:30]} Bf8 {[%emt 0:02:30]} 17. Rad1 {[%emt 0:02:30]} Rc6 {[%emt 0:03:30]} 18. Qf2 {[%emt 0:07:30]} Qc7 {[%emt 0:05:30]} 19. Bc1 {[%emt 0:10:30]} Nbd7 {[%emt 0:06:30]} 20. Nd5 {[%emt 0:04:30]} Nxd5 {[%emt 0:01:30]} 21. exd5 {[%emt 0:00:30]} Rb6 {[%emt 0:10:30]} 22. Bd2 {[%emt 0:00:00]} Qc5 {[%emt 0:07:39]} 23. Be3 {[%emt 0:01:00]} Qa5 {[%emt 0:01:16]} 24. Bxb6 {[%emt 0:00:00]} Nxb6 {[%emt 0:00:14]} 25. b4 {[%emt 0:00:00]} Qxb4 {[%emt 0:04:04]} 26. Rb1 {[%emt 0:00:30]} 1-0

[Event "8th Ali Ipek Tournament 2020"]
[Site "Ankara"]
[Date "2020.03.07"]
[Round "4.7"]
[White "Celik, Berkay"]
[Black "Oktem, Ege Tuna"]
[Result "0-1"]
[ECO "A03"]
[WhiteElo "1870"]
[BlackElo "1546"]
[Annotator "NA RC"]
[PlyCount "106"]
[EventDate "2020.03.04"]
[EventType "swiss"]
[EventCountry "TUR"]
[SourceTitle "playchess.com"]
[Source "ChessBase"]
[SourceQuality "1"]
[TimeControl "5400+30"]

1. f4 {[%emt 0:09:30]} d5 {[%emt 0:01:30]} 2. Nf3 {[%emt 0:00:30]} Nf6 {[%emt 0:01:30]} 3. e3 {[%emt 0:00:30]} c5 {[%emt 0:00:30]} 4. b3 {[%emt 0:00:30]} g6 {[%emt 0:00:30]} 5. Bb2 {[%emt 0:00:00]} Bg7 {[%emt 0:00:30]} 6. Bb5+ {[%emt 0:00:00]} Bd7 {[%emt 0:05:30]} 7. Be2 {[%emt 0:07:30]} Nc6 {[%emt 0:01:30]} 8. O-O {[%emt 0:00:30]} O-O {[%emt 0:00:30]} 9. Bb5 {[%emt 0:00:30]} a6 {[%emt 0:00:30]} 10. Bxc6 {[%emt 0:00:00]} Bxc6 {[%emt 0:01:30]} 11. Ne5 {[%emt 0:00:00]} Nd7 {[%emt 0:03:30]} 12. Nxc6 {[%emt 0:01:30]} bxc6 {[%emt 0:00:30]} 13. Bxg7 {[%emt 0:00:00]} Kxg7 {[%emt 0:00:30]} 14. d3 {[%emt 0:00:00]} f6 {[%emt 0:00:00]} 15. f5 {[%emt 0:00:30]} g5 {[%emt 0:01:00]} 16. Rf3 {[%emt 0:00:30]} Qe8 {[%emt 0:02:30]} 17. Rh3 {[%emt 0:00:30]} Rh8 {[%emt 0:00:30]} 18. Rh5 {[%emt 0:01:30]} h6 {[%emt 0:00:30]} 19. Nd2 {[%emt 0:00:30]} Ne5 {[%emt 0:01:30]} 20. Nf1 {[%emt 0:01:30]} d4 {[%emt 0:06:30]} 21. Ng3 {[%emt 0:02:30]} a5 {[%emt 0:01:30]} 22. Ne4 {[%emt 0:00:30]} Nd7 {[%emt 0:02:30]} 23. a4 {[%emt 0:00:30]} e6 {[%emt 0:05:30]} 24. g4 {[%emt 0:18:30]} e5 {[%emt 0:01:30]} 25. Qf3 {[%emt 0:01:30]} Qe7 {[%emt 0:01:30]} 26. Kg2 {[%emt 0:00:30]} Nb6 {[%emt 0:00:30]} 27. h4 {[%emt 0:01:30]} Nd5 {[%emt 0:00:30]} 28. hxg5 {[%emt 0:00:30]} hxg5 {[%emt 0:00:30]} 29. Rah1 {[%emt 0:00:30]} dxe3 {[%emt 0:01:30]} 30. Kf1 {[%emt 0:06:30]} Nf4 {[%emt 0:07:30]} 31. Rxh8 {[%emt 0:04:30]} e2+ {[%emt 0:00:30]} 32. Qxe2 {[%emt 0:00:30]} Rxh8 {[%emt 0:00:30]} 33. Qf3 {[%emt 0:00:30]} Rxh1+ {[%emt 0:03:30]} 34. Qxh1 {[%emt 0:00:00]} Nd5 {[%emt 0:00:30]} 35. Qg1 {[%emt 0:01:00]} Nb4 {[%emt 0:01:30]} 36. Qf2 {[%emt 0:00:30]} Na6 {[%emt 0:01:30]} 37. Qd2 {[%emt 0:00:30]} Qd8 {[%emt 0:02:30]} 38. Qc3 {[%emt 0:00:00]} Qb6 {[%emt 0:00:30]} 39. Qc4 {[%emt 0:00:00]} Nb4 {[%emt 0:01:30]} 40. Qe6 {[%emt 0:01:30]} Qd8 {[%emt 0:01:30]} 41. Nd6 {[%emt 0:00:30]} Qg8 {[%emt 0:05:30]} 42. Ne8+ {[%emt 0:00:30]} Kf8 {[%emt 0:01:30]} 43. Qc8 {[%emt 0:00:00]} Ke7 {[%emt 0:00:00]} 44. Qc7+ {[%emt 0:07:00]} Kxe8 {[%emt 0:00:00]} 45. Qc8+ {[%emt 0:00:00]} Kf7 {[%emt 0:00:30]} 46. Qe6+ {[%emt 0:00:00]} Kg7 {[%emt 0:00:30]} 47. Qe7+ {[%emt 0:00:00]} Qf7 {[%emt 0:00:00]} 48. Qxc5 {[%emt 0:00:00]} Qc7 {[%emt 0:01:00]} 49. Ke2 {[%emt 0:00:30]} Nd5 {[%emt 0:00:00]} 50. Kd1 {[%emt 0:01:30]} Qb6 {[%emt 0:02:00]} 51. Qd6 {[%emt 0:00:30]} Qg1+ {[%emt 0:00:00]} 52. Kd2 {[%emt 0:00:00]} Qe3+ {[%emt 0:00:00]} 53. Kd1 {[%emt 0:00:00]} Nc3# {[%emt 0:00:00]} 0-1

[Event "8th Ali Ipek Tournament 2020"]
[Site "Ankara"]
[Date "2020.03.07"]
[Round "4.8"]
[White "Nazli, Sertan"]
[Black "Caberoglu, Arda"]
[Result "0-1"]
[ECO "B14"]
[WhiteElo "1745"]
[BlackElo "1784"]
[Annotator "NA RC"]
[PlyCount "36"]
[EventDate "2020.03.04"]
[EventType "swiss"]
[EventCountry "TUR"]
[SourceTitle "playchess.com"]
[Source "ChessBase"]
[SourceQuality "1"]
[TimeControl "5400+30"]

1. e4 {[%emt 0:06:30]} c6 {[%emt 0:01:30]} 2. d4 {[%emt 0:00:30]} d5 {[%emt 0:00:00]} 3. exd5 {[%emt 0:01:30]} cxd5 {[%emt 0:00:00]} 4. c4 {[%emt 0:00:00]} Nf6 {[%emt 0:00:30]} 5. Nc3 {[%emt 0:00:00]} g6 {[%emt 0:00:00]} 6. Qb3 {[%emt 0:00:30]} Bg7 {[%emt 0:01:00]} 7. cxd5 {[%emt 0:00:00]} O-O {[%emt 0:00:00]} 8. Nge2 {[%emt 0:01:00]} e6 {[%emt 0:03:00]} 9. dxe6 {[%emt 0:07:30]} Bxe6 {[%emt 0:03:30]} 10. Qd1 {[%emt 0:03:30]} Nc6 {[%emt 0:03:30]} 11. g3 {[%emt 0:05:30]} Bd5 {[%emt 0:07:30]} 12. Nxd5 {[%emt 0:02:30]} Qxd5 {[%emt 0:00:30]} 13. Rg1 {[%emt 0:00:30]} Ne4 {[%emt 0:04:30]} 14. Bg2 {[%emt 0:15:30]} Bxd4 {[%emt 0:17:30]} 15. Nxd4 {[%emt 0:05:30]} Nxd4 {[%emt 0:00:30]} 16. Be3 {[%emt 0:00:30]} Qa5+ {[%emt 0:00:30]} 17. Kf1 {[%emt 0:04:30]} Qb5+ {[%emt 0:01:30]} 18. Ke1 {[%emt 0:00:30]} Qb4+ {[%emt 0:00:30]} 0-1

[Event "8th Ali Ipek Tournament 2020"]
[Site "Ankara"]
[Date "2020.03.07"]
[Round "4.9"]
[White "Aydin, Aytac"]
[Black "Ozates, Mert"]
[Result "1/2-1/2"]
[ECO "D11"]
[WhiteElo "1652"]
[BlackElo "1810"]
[Annotator "NA RC"]
[PlyCount "82"]
[EventDate "2020.03.04"]
[EventType "swiss"]
[EventCountry "TUR"]
[SourceTitle "playchess.com"]
[Source "ChessBase"]
[SourceQuality "1"]
[TimeControl "5400+30"]

1. d4 {[%emt 0:00:30]} Nf6 {[%emt 0:01:30]} 2. Nf3 {[%emt 0:00:00]} d5 {[%emt 0:00:00]} 3. c4 {[%emt 0:01:00]} c6 {[%emt 0:00:00]} 4. g3 {[%emt 0:00:30]} Bf5 {[%emt 0:00:30]} 5. Bg2 {[%emt 0:00:30]} h6 {[%emt 0:00:30]} 6. O-O {[%emt 0:00:00]} e6 {[%emt 0:00:00]} 7. Nc3 {[%emt 0:00:00]} Nbd7 {[%emt 0:00:00]} 8. Nd2 {[%emt 0:00:30]} Be7 {[%emt 0:00:30]} 9. e4 {[%emt 0:00:00]} dxe4 {[%emt 0:00:00]} 10. Ndxe4 {[%emt 0:00:00]} O-O {[%emt 0:00:00]} 11. Be3 {[%emt 0:00:00]} Nxe4 {[%emt 0:00:00]} 12. Nxe4 {[%emt 0:00:00]} Nf6 {[%emt 0:00:00] D11: Slav Defence: 3 Nf3 sidelines and 3...Nf6 4 e3 Bg4.} 13. Nc3 {[%emt 0:00:00]} Qa5 {[%emt 0:10:30]} 14. a3 {[%emt 0:03:00]} Rfd8 {[%emt 0:03:30] [#]} 15. Qe2 $146 {[%emt 0:08:30]} ({Predecessor:} 15. b4 Qc7 16. Qe2 Rac8 17. Rfc1 Qd7 18. h3 b6 19. Rd1 Qe8 20. Bf4 Rd7 21. g4 {1-0 (73) Matnadze,A (2422)-Exler,V (2103) Istanbul 2012}) 15... Rd7 {[%emt 0:10:30]} 16. h3 {[%emt 0:17:30]} Rad8 {[%emt 0:06:30]} 17. b4 {[%emt 0:02:30]} Qc7 {[%emt 0:00:30]} 18. Rac1 {[%emt 0:07:30]} a5 {[%emt 0:03:30]} 19. c5 {[%emt 0:37:30]} axb4 {[%emt 0:05:30]} 20. axb4 {[%emt 0:00:00]} e5 {[%emt 0:09:30]} 21. Na4 {[%emt 0:01:18]} Re8 {[%emt 0:13:30]} 22. Nb6 {[%emt 0:01:36]} Rdd8 {[%emt 0:00:30]} 23. Rfd1 {[%emt 0:00:04]} Bf8 {[%emt 0:06:30]} 24. dxe5 {[%emt 0:01:03]} Qxe5 {[%emt 0:01:30]} 25. Qc4 {[%emt 0:04:04]} Ne4 {[%emt 0:09:08]} 26. Bd4 {[%emt 0:02:08]} Qe6 {[%emt 0:01:46]} 27. Qxe6 {[%emt 0:00:34]} Rxe6 {[%emt 0:00:39]} 28. Bb2 {[%emt 0:01:01]} Rde8 {[%emt 0:03:02]} 29. Bd4 {[%emt 0:01:58]} Be7 {[%emt 0:03:22]} 30. Nc4 {[%emt 0:01:07]} Rd8 {[%emt 0:02:54]} 31. Bb2 {[%emt 0:01:32]} Re8 {[%emt 0:03:26]} 32. Rd7 {[%emt 0:04:01]} (32. g4 $14 Bh7 33. f4) 32... Bg5 {[%emt 0:00:56] [#]} 33. Rcd1 {[%emt 0:01:07]} ({Only move:} 33. Rf1 $1 $16) 33... R6e7 $2 {[%emt 0:04:17]} (33... Nxf2 $1 $15 {keeps the upper hand.} 34. Kxf2 Re2+ 35. Kg1 Bxd7 36. Rxd7 Rc2) 34. Rxe7 {[%emt 0:00:13]} Rxe7 {[%emt 0:00:29]} 35. h4 {[%emt 0:00:20]} Bf6 {[%emt 0:00:59]} 36. Bxf6 {[%emt 0:00:05]} Nxf6 {[%emt 0:00:13]} 37. Rd8+ {[%emt 0:00:27]} Re8 {[%emt 0:01:01]} 38. Rxe8+ {[%emt 0:00:52]} Nxe8 {[%emt 0:00:05]} 39. Kh2 {[%emt 0:03:00]} Nc7 {[%emt 0:00:53]} 40. Nd6 {[%emt 0:00:07]} Bd7 $1 {[%emt 0:00:36]} 41. Nxb7 {[%emt 0:02:40]} Na6 $11 {[%emt 0:00:06]} 1/2-1/2